[Event "FIDE Women's Grand Swiss 2023"]
[Site "Villa Marina, Douglas, Isle of Man, Isle Of Man"]
[Date "2023.11.03"]
[Round "9.25"]
[White "Matnadze Bujiashvili, Ann"]
[Black "Nassr, Lina"]
[Result "1-0"]
[TimeControl "40/90 + 30 + 30s/move"]
[WhiteFideId "13601377"]
[BlackFideId "7908075"]
[WhiteElo "2400"]
[BlackElo "2066"]

1. d4 {[%clk 01:30:56]} {[%emt 00:00:03]} Nf6 {[%clk 01:30:44]} {[%emt
00:00:16]} 2. g3 {[%clk 01:31:16]} {[%emt 00:00:10]} e6 {[%clk 01:30:45]}
{[%emt 00:00:29]} 3. c4 {[%clk 01:31:40]} {[%emt 00:00:07]} d5 {[%clk
01:31:02]} {[%emt 00:00:13]} 4. Bg2 {[%clk 01:31:51]} {[%emt 00:00:18]} dxc4
{[%clk 01:30:46]} {[%emt 00:00:47]} 5. Nf3 {[%clk 01:31:43]} {[%emt 00:00:38]}
a6 {[%clk 01:30:41]} {[%emt 00:00:35]} 6. O-O {[%clk 01:31:51]} {[%emt
00:00:21]} Nc6 {[%clk 01:30:29]} {[%emt 00:00:43]} 7. a4 {[%clk 01:31:44]}
{[%emt 00:00:37]} Be7 {[%clk 01:22:56]} {[%emt 00:08:04]} 8. Na3 {[%clk
01:21:49]} {[%emt 00:10:24]} Na5 {[%clk 01:19:56]} {[%emt 00:03:30]} 9. Bg5
{[%clk 01:19:03]} {[%emt 00:03:16]} Rb8 {[%clk 01:14:03]} {[%emt 00:06:23]} 10.
Qe1 {[%clk 01:15:28]} {[%emt 00:04:05]} Nb3 {[%clk 01:05:33]} {[%emt 00:09:00]}
11. Rd1 {[%clk 01:15:47]} {[%emt 00:00:11]} Bd7 {[%clk 00:57:22]} {[%emt
00:08:42]} 12. Bxf6 {[%clk 01:12:41]} {[%emt 00:03:35]} Bxf6 {[%clk 00:54:20]}
{[%emt 00:03:32]} 13. Nxc4 {[%clk 01:10:35]} {[%emt 00:02:36]} b5 {[%clk
00:49:35]} {[%emt 00:05:15]} 14. Nce5 {[%clk 00:54:44]} {[%emt 00:16:21]} O-O
{[%clk 00:41:59]} {[%emt 00:08:07]} 15. a5 {[%clk 00:49:56]} {[%emt 00:05:18]}
b4 {[%clk 00:41:12]} {[%emt 00:01:17]} 16. d5 {[%clk 00:38:38]} {[%emt
00:11:47]} Qe8 {[%clk 00:38:04]} {[%emt 00:03:38]} 17. Nxd7 {[%clk 00:26:09]}
{[%emt 00:12:59]} Qxd7 {[%clk 00:38:28]} {[%emt 00:00:06]} 18. Bh3 {[%clk
00:26:12]} {[%emt 00:00:27]} Qe7 {[%clk 00:35:44]} {[%emt 00:03:14]} 19. dxe6
{[%clk 00:26:05]} {[%emt 00:00:37]} fxe6 {[%clk 00:35:28]} {[%emt 00:00:45]} 20.
Rd3 {[%clk 00:25:40]} {[%emt 00:00:56]} Nc5 {[%clk 00:27:24]} {[%emt 00:08:34]}
21. Rd2 {[%clk 00:25:32]} {[%emt 00:00:37]} Nb3 {[%clk 00:23:27]} {[%emt
00:04:28]} 22. Rc2 {[%clk 00:24:56]} {[%emt 00:01:07]} c5 {[%clk 00:22:57]}
{[%emt 00:00:59]} 23. Rc4 {[%clk 00:19:40]} {[%emt 00:05:46]} Nxa5 {[%clk
00:18:17]} {[%emt 00:05:11]} 24. Re4 {[%clk 00:20:02]} {[%emt 00:00:07]} Rb6
{[%clk 00:17:28]} {[%emt 00:01:19]} 25. Qa1 {[%clk 00:18:07]} {[%emt 00:02:24]}
Nb7 {[%clk 00:17:38]} {[%emt 00:00:20]} 26. Qa2 {[%clk 00:15:45]} {[%emt
00:02:52]} b3 {[%clk 00:15:55]} {[%emt 00:02:12]} 27. Qa3 {[%clk 00:15:27]}
{[%emt 00:00:49]} Rd8 {[%clk 00:15:55]} {[%emt 00:00:30]} 28. Re3 {[%clk
00:13:01]} {[%emt 00:02:56]} Rb8 {[%clk 00:07:01]} {[%emt 00:09:24]} 29. Rxb3
{[%clk 00:05:01]} {[%emt 00:08:30]} Nd8 {[%clk 00:07:00]} {[%emt 00:00:31]} 30.
Rxb6 {[%clk 00:04:41]} {[%emt 00:00:50]} Rxb6 {[%clk 00:07:24]} {[%emt
00:00:06]} 31. b3 {[%clk 00:04:54]} {[%emt 00:00:17]} Qd6 {[%clk 00:03:12]}
{[%emt 00:04:42]} 32. Rc1 {[%clk 00:03:32]} {[%emt 00:01:52]} Rb5 {[%clk
00:02:45]} {[%emt 00:00:57]} 33. Qa4 {[%clk 00:03:39]} {[%emt 00:00:23]} Kf7
{[%clk 00:02:10]} {[%emt 00:01:05]} 34. Bf1 {[%clk 00:03:41]} {[%emt 00:00:28]}
Rb4 {[%clk 00:01:52]} {[%emt 00:00:49]} 35. Qa2 {[%clk 00:03:51]} {[%emt
00:00:19]} Nb7 {[%clk 00:00:45]} {[%emt 00:01:37]} 36. Qc2 {[%clk 00:03:36]}
{[%emt 00:00:45]} g6 {[%clk 00:00:52]} {[%emt 00:00:23]} 37. Rd1 {[%clk
00:03:35]} {[%emt 00:00:31]} Qc7 {[%clk 00:00:53]} {[%emt 00:00:28]} 38. e3
{[%clk 00:02:45]} {[%emt 00:01:20]} Rb6 {[%clk 00:00:47]} {[%emt 00:00:37]} 39.
Nd2 {[%clk 00:02:45]} {[%emt 00:00:30]} Rd6 {[%clk 00:00:43]} {[%emt 00:00:33]}
40. Ne4 {[%clk 00:02:18]} {[%emt 00:00:58]} Rxd1 {[%clk 00:01:00]} {[%emt
00:00:13]} 41. Qxd1 {[%clk 00:02:46]} {[%emt 00:00:02]} Be7 {[%clk 00:26:36]}
{[%emt 00:04:55]} 42. Bxa6 {[%clk 00:32:02]} {[%emt 00:01:14]} Nd6 {[%clk
00:24:15]} {[%emt 00:02:51]} 43. Nd2 {[%clk 00:30:28]} {[%emt 00:02:04]} Bf6
{[%clk 00:22:30]} {[%emt 00:02:15]} 44. Bc4 {[%clk 00:29:50]} {[%emt 00:01:07]}
Qc6 {[%clk 00:14:24]} {[%emt 00:08:36]} 45. Qg4 {[%clk 00:28:54]} {[%emt
00:01:25]} Nf5 {[%clk 00:10:52]} {[%emt 00:04:03]} 46. Ne4 {[%clk 00:23:36]}
{[%emt 00:05:48]} Be7 {[%clk 00:08:10]} {[%emt 00:03:12]} 47. Qf3 {[%clk
00:21:23]} {[%emt 00:02:43]} Kg7 {[%clk 00:07:12]} {[%emt 00:01:29]} 48. Qf4
{[%clk 00:21:37]} {[%emt 00:00:15]} h6 {[%clk 00:04:03]} {[%emt 00:03:39]} 49.
h4 {[%clk 00:20:44]} {[%emt 00:01:22]} h5 {[%clk 00:01:25]} {[%emt 00:03:09]}
50. Qe5+ {[%clk 00:20:29]} {[%emt 00:00:44]} Kf7 {[%clk 00:01:45]} {[%emt
00:00:11]} 51. Ng5+ {[%clk 00:20:10]} {[%emt 00:00:49]} Bxg5 {[%clk 00:01:07]}
{[%emt 00:01:08]} 52. hxg5 {[%clk 00:20:37]} {[%emt 00:00:02]} Ke7 {[%clk
00:00:34]} {[%emt 00:01:04]} 53. Qf6+ {[%clk 00:20:31]} {[%emt 00:00:36]} Kd7
{[%clk 00:00:52]} {[%emt 00:00:12]} 54. Qxg6 {[%clk 00:18:06]} {[%emt
00:02:54]} h4 {[%clk 00:01:16]} {[%emt 00:00:07]} 55. Qf7+ {[%clk 00:16:05]}
{[%emt 00:02:30]} Ne7 {[%clk 00:01:34]} {[%emt 00:00:13]} 56. gxh4 {[%clk
00:16:04]} {[%emt 00:00:31]} Qe4 {[%clk 00:01:43]} {[%emt 00:00:21]} 57. Qf4
{[%clk 00:12:05]} {[%emt 00:04:29]} Qb1+ {[%clk 00:00:38]} {[%emt 00:01:34]} 58.
Kh2 {[%clk 00:12:15]} {[%emt 00:00:20]} Qg6 {[%clk 00:00:36]} {[%emt 00:00:33]}
59. Bb5+ {[%clk 00:12:27]} {[%emt 00:00:18]} Kc8 {[%clk 00:00:34]} {[%emt
00:00:32]} 60. Qf8+ {[%clk 00:11:49]} {[%emt 00:01:08]} Kc7 {[%clk 00:00:43]}
{[%emt 00:00:21]} 61. Qxe7+ {[%clk 00:12:06]} {[%emt 00:00:13]} Kb6 {[%clk
00:01:08]} {[%emt 00:00:05]} 62. Bc4 {[%clk 00:11:52]} {[%emt 00:00:44]} Qh5
{[%clk 00:00:52]} {[%emt 00:00:46]} 63. Kg3 {[%clk 00:10:50]} {[%emt 00:01:32]}
1-0